bitfinex-derivatives/quotes_BNBF0:USTF0_20250810
["timestamp","ask_amount","ask_price","bid_price","bid_amount"]
[1754806488420,0.5,813.63,813.02,2.75971933]
[1754806489319,0.5,813.63,813.01,2.75971933]
[1754806489822,0.5,813.63,813.02,2.75971933]
[1754806490323,0.5,813.63,813.0,2.75971933]
[1754806492624,0.5,813.63,812.99,2.75971933]
[1754806493525,0.5,813.63,812.98,2.75971933]
[1754806493722,0.82660309,814.74,812.98,2.75971933]
[1754806493723,0.286,813.6,812.98,2.75971933]
[1754806493926,0.5,813.63,812.98,2.75971933]
[1754806494627,0.5,813.63,813.0,2.75971933]
[1754806495228,0.5,813.58,813.0,2.75971933]
[1754806495529,0.5,813.58,813.15,2.75971933]
[1754806496228,0.82660309,814.68,813.15,2.75971933]
[1754806496429,1.09615333,814.82,813.15,2.75971933]
[1754806496430,0.82660309,814.69,813.15,2.75971933]
[1754806496627,0.82660309,814.69,813.14,2.75971933]
[1754806496825,0.82660309,814.67,812.88,3.86360707]
[1754806497030,0.471,813.55,812.79,2.75971933]
[1754806497230,0.284,813.46,812.79,2.75971933]
[1754806497429,0.5,813.46,812.73,2.75971933]
[1754806497732,0.5,813.41,812.73,2.75971933]
[1754806497931,0.5,813.41,812.68,2.75971933]
[1754806498128,0.5,813.41,812.69,1.08261196]
[1754806498333,0.5,813.41,812.68,2.75971933]
[1754806498535,0.5,813.41,812.69,1.08231616]
[1754806498734,0.5,813.41,812.64,2.75971933]
[1754806498933,0.5,813.41,812.65,1.08231616]
[1754806499132,0.5,813.41,812.66,1.08231616]
[1754806499335,0.5,813.41,812.67,1.08231616]
[1754806499537,0.5,813.41,812.68,1.08231616]
[1754806499735,0.5,813.41,812.43,2.75971933]
[1754806499932,0.5,813.41,812.44,1.08229881]
[1754806500231,0.5,813.41,812.45,1.08229881]
[1754806500435,0.5,813.41,812.46,1.08229881]
[1754806500731,0.5,813.41,812.47,1.08229881]
[1754806500930,0.284,813.37,812.48,1.08229881]
[1754806501137,0.5,813.41,812.49,1.08229881]
[1754806501333,0.5,813.41,812.5,1.08229881]
[1754806501534,0.5,813.41,812.51,1.08229881]
[1754806501736,0.21421317,813.19,812.52,1.08229881]
[1754806501934,0.21421317,813.19,812.53,1.08229881]
[1754806502133,0.21421317,813.19,812.54,1.08229881]
[1754806502436,0.21421317,813.19,812.55,1.08229881]
[1754806502633,0.21421317,813.19,812.56,1.08229881]
[1754806502933,0.21421317,813.19,812.57,1.08229881]
[1754806503137,0.21421317,813.19,812.36,2.75971933]
[1754806503138,0.21421317,813.19,812.58,1.08229881]
[1754806503334,0.21421317,813.19,812.59,1.08058162]
[1754806503540,0.21421317,813.19,812.24,2.75971933]
[1754806503735,0.71421317,813.19,812.25,1.08086534]
[1754806503934,0.348,813.16,812.26,1.08086534]
[1754806504235,0.5,813.13,812.27,1.08086534]
[1754806504434,0.5,813.13,812.28,1.08086534]
[1754806504737,0.5,813.1,812.29,1.08086534]
[1754806504935,0.5,813.1,812.3,1.08086534]
[1754806505138,0.5,813.1,812.31,1.08086534]
[1754806505339,0.5,813.1,812.87,1.64979371]
[1754806505639,0.5,813.1,812.88,1.64979371]
[1754806506133,0.5,813.1,812.85,1.64979371]
[1754806506739,0.5,813.1,812.84,1.64979371]
[1754806507241,0.5,813.1,812.81,1.64979371]
[1754806508139,0.5,813.1,812.79,1.64979371]
[1754806508442,0.5,813.05,812.73,1.64979371]
[1754806509242,0.296,813.11,812.73,1.64979371]
[1754806509441,0.296,813.11,812.72,1.64979371]
[1754806509743,0.296,813.11,812.73,1.64979371]
[1754806510139,0.296,813.11,812.71,1.64979371]
[1754806510341,0.296,813.11,812.69,1.64979371]
[1754806510541,0.296,813.11,811.9,1.418]
[1754806510542,0.296,813.11,812.66,1.64979371]
[1754806510742,0.5,813.0,812.66,1.64979371]
[1754806511243,0.5,813.0,812.64,1.64979371]
[1754806512041,0.5,813.0,812.63,1.64979371]
[1754806512245,0.282,812.93,812.61,1.64979371]
[1754806512445,0.5,812.96,812.58,1.64979371]
[1754806513346,0.5,812.96,812.56,1.64979371]
[1754806513544,0.5,812.96,812.57,1.64979371]
[1754806514247,0.5,812.96,812.55,1.64979371]
[1754806515143,0.5,812.96,812.53,1.64979371]
[1754806515344,0.5,812.96,812.47,1.64979371]
[1754806515647,0.5,812.73,812.23,1.64979371]
[1754806516142,0.5,812.73,811.9,1.418]
[1754806516143,0.5,812.73,812.2,1.64979371]
[1754806516344,0.5,812.73,812.21,1.0761649]
[1754806516644,0.5,812.73,812.22,1.0761649]
[1754806516844,0.5,812.73,812.39,1.09621503]
[1754806517245,0.5,812.73,812.37,1.09621503]
[1754806518045,0.5,812.73,811.9,1.418]
[1754806518046,0.5,812.73,812.33,1.09621503]
[1754806518245,0.5,812.73,812.34,1.09621503]
[1754806519144,0.5,812.73,812.28,1.09621503]
[1754806519345,0.299,812.57,812.21,1.09621503]
[1754806519545,0.21421317,813.19,811.9,1.418]
[1754806519546,0.5,812.71,812.2,1.09621503]
[1754806520046,0.5,812.71,812.19,1.09621503]
[1754806520244,0.21421317,813.19,811.9,1.418]
[1754806520245,0.5,812.57,812.15,1.09621503]
[1754806520445,0.5,812.51,812.16,1.09621503]
[1754806520848,0.5,812.51,812.15,1.09621503]
[1754806521047,0.5,812.51,812.16,1.09621503]
[1754806521250,0.5,812.51,812.13,1.09621503]
[1754806521452,0.5,812.51,812.12,1.09621503]
[1754806521749,0.5,812.51,812.05,1.09621503]
[1754806521953,0.5,812.51,812.04,1.09621503]
[1754806522253,0.5,812.51,811.93,1.09621503]
[1754806522454,0.5,812.51,811.92,1.09621503]
[1754806522648,0.278,812.49,811.92,1.09621503]
[1754806522848,0.278,812.47,811.92,1.09621503]
[1754806523053,0.5,812.51,811.92,1.09621503]
[1754806523348,0.5,812.51,811.74,1.64979371]
[1754806523349,0.267,812.46,811.89,1.09621503]
[1754806524255,0.267,812.46,811.87,1.09621503]
[1754806525256,0.267,812.46,811.85,1.09621503]
[1754806525455,0.5,812.37,811.82,1.09621503]
[1754806525856,0.5,812.37,811.81,1.09621503]
[1754806526358,0.5,812.37,811.79,1.09621503]
[1754806526755,0.5,812.44,811.78,1.09621503]
[1754806526955,0.301,812.38,811.78,1.09621503]
[1754806527159,0.301,812.38,811.76,1.09621503]
[1754806527357,0.5,812.44,811.76,1.09621503]
[1754806527557,0.301,812.38,811.76,1.09621503]
[1754806527858,0.5,812.44,811.8,1.09621503]
[1754806528157,0.282,812.42,811.86,1.09621503]
[1754806528355,0.301,812.43,811.86,1.09621503]
[1754806528956,0.301,812.43,811.81,1.09621503]
[1754806529255,0.301,812.43,811.8,1.09621503]
[1754806529456,0.301,812.43,811.78,1.09621503]
[1754806529659,0.5,812.44,811.78,1.09621503]
[1754806529858,0.301,812.43,811.78,1.09621503]
[1754806530055,0.282,812.41,811.78,1.09621503]
[1754806530259,0.301,812.43,811.77,1.09621503]
[1754806530655,0.365,812.43,811.77,1.09621503]
[1754806531260,0.365,812.43,811.76,1.09621503]
[1754806531560,0.301,812.43,811.76,1.09621503]
[1754806531860,0.301,812.43,811.77,1.09621503]
[1754806532057,0.282,812.4,811.78,1.09621503]
[1754806532258,0.301,812.43,811.78,1.09621503]
[1754806533158,0.301,812.43,810.95,1.704]
[1754806533159,0.301,812.43,811.77,1.09621503]
[1754806533462,0.301,812.43,811.78,1.09621503]
[1754806534061,0.301,812.43,811.74,1.09621503]
[1754806534261,0.301,812.43,811.73,1.09621503]
[1754806534462,0.301,812.43,811.74,1.09621503]
[1754806534762,0.365,812.43,811.8,1.09621503]
[1754806534962,0.365,812.43,811.76,1.09621503]
[1754806535160,0.346,812.38,811.72,1.09621503]
[1754806535462,0.5,812.29,811.61,1.09621503]
[1754806535665,0.5,812.29,811.57,1.09621503]
[1754806535860,0.5,812.24,811.55,1.09621503]
[1754806536159,0.5,812.24,811.52,1.09621503]
[1754806536365,0.5,812.24,811.48,1.09621503]
[1754806536561,0.5,812.1,811.53,1.09621503]
[1754806536765,0.5,812.1,811.52,1.09621503]
[1754806537161,0.5,812.1,811.51,1.09621503]
[1754806537360,0.5,812.1,811.55,1.09621503]
[1754806538065,0.5,812.1,810.95,1.704]
[1754806538066,0.5,812.07,811.47,1.09621503]
[1754806538366,0.5,812.07,811.46,1.09621503]
[1754806539162,0.5,812.03,811.23,1.09621503]
[1754806539363,0.5,812.03,811.45,1.09621503]
[1754806539666,0.5,812.03,811.48,1.09621503]
[1754806540563,0.5,812.03,811.47,1.09621503]
[1754806540767,0.5,812.03,811.43,1.09621503]
[1754806541164,0.5,812.1,811.42,1.09621503]
[1754806541362,0.5,812.18,811.46,1.09621503]
[1754806541766,0.5,812.19,811.46,1.09621503]
[1754806541968,0.5,812.19,811.52,1.09621503]
[1754806542164,0.5,812.33,811.55,1.09621503]
[1754806542368,0.5,812.33,811.57,1.09621503]
[1754806542569,0.379,812.32,811.57,1.09621503]
[1754806542769,0.251,812.08,811.46,1.09621503]
[1754806542965,0.5,812.21,811.47,1.09621503]
[1754806543166,0.5,812.21,811.46,1.09621503]
[1754806543370,0.5,812.21,811.47,1.09621503]
[1754806543870,0.5,812.33,811.48,1.06865878]
[1754806544065,0.5,812.33,811.39,1.09621503]
[1754806544066,0.5,812.33,811.49,1.06865878]
[1754806544269,0.5,812.33,811.5,1.06865878]
[1754806544469,0.5,812.33,811.51,1.06865878]
[1754806544665,0.417,812.32,811.52,1.06865878]
[1754806544965,0.308,812.32,811.53,1.06865878]
[1754806545165,0.308,812.32,811.48,1.09621503]
[1754806545166,0.308,812.32,811.54,1.06865878]
[1754806545366,0.308,812.32,811.55,1.06865878]
[1754806545565,0.308,812.32,811.56,1.06865878]
[1754806545767,0.308,812.32,811.57,1.06865878]
[1754806545966,0.308,812.32,811.58,1.06865878]
[1754806546270,0.308,812.32,811.59,1.06937001]
[1754806546567,0.308,812.32,811.49,1.09621503]
[1754806546773,0.289,812.29,811.53,1.09621503]
[1754806546966,0.308,812.32,811.54,1.0693731]
[1754806547168,0.308,812.32,811.58,1.09621503]
[1754806547469,0.308,812.32,811.59,1.09621503]
[1754806547670,0.288,812.28,811.59,1.09621503]
[1754806547871,0.287,812.26,811.6,1.09621503]
[1754806548067,0.25,812.24,811.59,1.09621503]
[1754806548371,0.307,812.32,811.6,1.09621503]
[1754806548571,0.415,812.32,811.6,1.09621503]
[1754806549373,0.415,812.32,811.62,1.09621503]
[1754806550271,0.415,812.32,811.64,1.09621503]
[1754806550576,0.307,812.32,811.64,1.09621503]
[1754806550774,0.415,812.32,811.63,1.09621503]
[1754806551269,0.287,812.2,811.63,1.09621503]
[1754806551472,0.307,812.32,811.65,1.09621503]
[1754806552371,0.25,812.18,811.67,1.09621503]
[1754806552569,0.5,812.31,811.65,1.09621503]
[1754806552770,0.5,812.31,811.67,1.09621503]
[1754806552971,0.5,812.33,811.71,1.09621503]
[1754806553274,0.5,812.33,811.73,1.09621503]
[1754806553969,0.287,812.29,811.73,1.09621503]
[1754806554174,0.25,812.28,811.79,1.09621503]
[1754806554473,0.25,812.28,811.83,1.09621503]
[1754806555068,0.25,812.28,811.84,1.09621503]
[1754806555472,0.25,812.28,811.79,1.09621503]
[1754806555971,0.307,812.32,811.78,1.09621503]
[1754806556173,0.307,812.32,811.79,1.09621503]
[1754806556471,0.307,812.32,811.82,1.09621503]
[1754806556772,0.25,812.28,811.81,1.09621503]
[1754806556971,0.25,812.28,811.82,1.09621503]
[1754806557172,0.357,812.28,811.77,1.09621503]
[1754806557374,0.461,812.26,811.71,1.09621503]
[1754806557973,0.461,812.26,811.75,1.09621503]
[1754806558473,0.461,812.26,811.77,1.09621503]
[1754806559380,0.461,812.26,811.8,1.09621503]
[1754806560581,0.461,812.26,811.81,1.09621503]
[1754806561382,0.461,812.26,811.82,1.09621503]
[1754806561581,0.461,812.26,811.81,1.09621503]
[1754806562283,0.5,812.21,811.84,1.09621503]
[1754806562587,0.5,812.11,811.84,1.09621503]
[1754806562878,0.285,812.05,811.84,1.09621503]
[1754806563281,0.5,812.11,811.86,1.09621503]
[1754806563480,0.5,812.11,811.85,1.09621503]
[1754806564379,0.5,812.11,811.87,1.09621503]
[1754806564882,0.5,812.11,811.89,1.09621503]
[1754806565086,0.284,812.06,811.89,1.09621503]
[1754806565287,0.5,812.11,811.91,1.09621503]
[1754806565488,0.5,812.11,811.11,2.75971933]
[1754806565489,0.5,812.11,811.97,1.09621503]
[1754806566488,0.5,812.11,811.98,1.09621503]
[1754806567185,0.5,812.11,811.99,1.09621503]
[1754806568389,0.5,812.11,811.97,1.09621503]
[1754806569189,0.5,812.11,811.95,1.09621503]
[1754806569387,0.5,812.11,811.86,1.09621503]
[1754806570191,0.5,812.11,811.88,1.09621503]
[1754806570391,0.5,812.11,811.89,1.09621503]
[1754806570588,0.5,812.11,811.82,1.09621503]
[1754806570791,0.5,812.11,811.87,1.09621503]
[1754806570992,0.5,812.11,811.88,1.09621503]
[1754806571287,0.5,812.11,812.01,1.09621503]
[1754806571992,0.5,812.11,810.7,1.394]
[1754806571993,0.5,812.11,811.86,1.09621503]
[1754806572188,0.5,812.11,811.89,1.09621503]
[1754806573091,0.5,812.11,811.8,1.09621503]
[1754806573307,0.5,812.11,811.83,1.09621503]
[1754806573494,0.5,811.9,811.82,1.09621503]
[1754806574291,0.5,811.89,811.81,1.64979371]
[1754806574495,0.5,811.87,811.69,1.64979371]
[1754806574897,0.5,811.87,811.83,1.10403385]
[1754806575196,0.5,811.87,811.67,1.64979371]
[1754806575395,0.5,811.87,811.85,1.10461826]
[1754806576095,0.5,812.02,811.74,1.64979371]
[1754806576293,0.336,811.96,811.95,1.10487598]
[1754806576596,0.5,812.02,811.95,1.10487598]
[1754806576798,0.325,812.06,811.94,1.10487598]
[1754806577093,0.5,812.03,811.88,1.10487598]
[1754806577397,0.289,811.91,811.9,1.10487598]
[1754806577692,0.82488816,813.23,811.9,1.10487598]
[1754806577693,0.5,812.03,811.9,1.10487598]
[1754806577997,0.289,811.95,811.9,1.10487598]
[1754806578393,0.289,811.95,811.78,1.64979371]
[1754806578693,0.82488816,813.08,811.9,0.60556083]
[1754806578893,0.82488816,813.05,811.67,1.64979371]
[1754806579096,0.82488816,813.04,811.66,1.64979371]
[1754806579297,0.82488816,813.01,811.67,1.64979371]
[1754806579493,0.5,811.81,811.62,1.64979371]
[1754806579697,0.5,811.88,811.62,1.64979371]
[1754806579899,0.21457772,811.77,811.62,1.64979371]
[1754806580100,0.21457772,811.77,811.63,1.64979371]
[1754806580296,0.21457772,811.77,811.54,1.64979371]
[1754806580500,0.21457772,811.77,811.52,1.64979371]
[1754806581096,0.21457772,811.77,811.53,1.64979371]
[1754806581296,0.21457772,811.77,811.56,1.64979371]
[1754806581501,0.21457772,811.77,811.5,1.64979371]
[1754806581703,0.21457772,811.77,811.52,1.64979371]
[1754806582403,0.21457772,811.77,811.5,1.64979371]
[1754806582704,0.5,811.64,811.34,1.64979371]
[1754806582898,0.286,811.63,811.27,1.64979371]
[1754806583200,0.286,811.63,811.28,1.64979371]
[1754806583499,0.5,811.72,811.27,1.64979371]
[1754806583899,0.5,811.72,811.47,1.64979371]
[1754806584101,0.71457772,811.77,811.47,1.64979371]
[1754806584302,0.251,811.73,811.45,1.64979371]
[1754806584506,0.71457772,811.77,811.45,1.64979371]
[1754806585105,0.289,811.74,811.46,1.64979371]
[1754806585305,0.289,811.68,811.47,1.64979371]
[1754806585504,0.327,811.67,811.44,1.64979371]
[1754806585703,0.5,811.66,810.99,1.64979371]
[1754806585903,0.5,811.66,811.0,1.08361895]
[1754806586106,0.5,811.66,811.01,1.08361895]
[1754806586309,0.21457772,811.77,811.56,1.64979371]
[1754806587207,0.21457772,811.77,811.55,1.64979371]
[1754806587505,0.21457772,811.77,811.56,1.64979371]
[1754806587707,0.21457772,811.77,811.7,1.64979371]
[1754806587903,0.21457772,811.77,811.61,1.64979371]
[1754806588306,0.21457772,811.77,811.62,1.64979371]
[1754806588509,0.21457772,811.77,811.61,1.64979371]
[1754806589309,0.21457772,811.77,811.67,1.64979371]
[1754806590109,0.21457772,811.77,811.66,1.64979371]
[1754806590308,0.21457772,811.77,811.65,1.64979371]
[1754806590506,0.21457772,811.77,811.66,1.64979371]
[1754806590712,0.21457772,811.77,811.68,1.64979371]
[1754806591308,0.21457772,811.77,811.69,1.64979371]
[1754806591708,0.21457772,811.77,811.7,1.64979371]
[1754806592514,0.21457772,811.77,811.69,1.64979371]
[1754806592811,0.21457772,811.77,811.65,1.64979371]
[1754806593208,0.21457772,811.77,810.96,2.75971933]
[1754806593209,0.21457772,811.77,811.66,1.64979371]
[1754806593412,0.21457772,811.77,811.71,1.64979371]
[1754806593608,0.21457772,811.77,811.59,1.64979371]
[1754806593809,0.21457772,811.77,811.54,1.64979371]
[1754806594211,0.21457772,811.77,811.55,1.64979371]
[1754806594518,0.21457772,811.77,811.52,1.64979371]
[1754806595216,0.21457772,811.77,811.41,1.64979371]
[1754806595416,0.5,811.67,811.32,1.64979371]
[1754806595814,0.5,811.67,811.29,1.64979371]
[1754806596113,0.258,811.58,811.28,1.64979371]
[1754806596315,0.258,811.58,811.25,1.64979371]
[1754806596516,0.253,811.57,811.24,1.64979371]
[1754806596714,0.253,811.57,811.3,1.64979371]
[1754806596911,0.329,811.5,811.3,1.64979371]
[1754806597116,0.5,811.62,811.3,1.64979371]
[1754806597318,0.383,811.55,811.15,1.64979371]
[1754806597612,0.315,811.34,810.98,1.64979371]
[1754806597816,0.315,811.34,810.14,2.75971933]
[1754806597817,0.421,811.34,810.97,1.64979371]
[1754806598017,0.315,811.34,811.08,1.64979371]
[1754806598316,0.401,811.5,811.05,1.64979371]
[1754806598518,0.436,811.4,811.07,1.64979371]
[1754806598719,0.365,811.4,811.07,1.64979371]
[1754806598921,0.258,811.4,811.04,1.64979371]
[1754806599119,0.258,811.4,811.05,1.64979371]
[1754806599420,0.329,811.4,811.05,1.64979371]
[1754806599619,0.329,811.4,811.03,1.64979371]
[1754806599822,0.377,811.44,810.93,1.64979371]
[1754806600021,0.365,811.42,810.93,1.64979371]
[1754806600220,1.64423,813.2,809.9,1.078]
[1754806600221,0.82488816,812.0,810.39,1.43502132]
[1754806600521,0.365,810.53,809.9,1.078]
[1754806600718,0.365,810.53,809.91,1.08113386]
[1754806600915,0.258,810.44,809.92,1.08113386]
[1754806601118,0.5,810.44,809.93,1.08123424]
[1754806601315,0.258,810.35,809.94,1.08123424]
[1754806601519,0.294,810.52,809.95,1.08123424]
[1754806601716,0.294,810.65,809.96,1.08123424]
[1754806601916,0.294,810.65,809.97,1.08123424]
[1754806602121,0.294,810.65,809.98,1.08123424]
[1754806602321,0.294,810.57,809.99,1.08123424]
[1754806602616,0.294,810.57,810.0,1.08123424]
[1754806602916,0.5,810.69,810.01,1.08123424]
[1754806603120,0.342,810.76,810.02,1.08123424]
[1754806603420,0.342,810.76,809.9,1.078]
[1754806603421,0.288,810.02,809.9,0.86292962]
[1754806603620,0.5,809.93,807.74,2.75971933]
[1754806603815,0.413,809.93,808.13,2.75971933]
[1754806604020,0.413,809.93,808.14,1.07713211]
[1754806604218,1.09615333,811.72,808.13,2.75971933]
[1754806604219,0.479,810.06,808.15,1.07713211]
[1754806604518,0.413,810.04,808.2,0.21509165]
[1754806604722,0.413,810.04,808.21,1.07713211]
[1754806604919,2.74038333,813.19,808.2,0.21509165]
[1754806604920,0.475,810.03,808.22,1.07713211]
[1754806605122,0.475,810.03,808.23,1.07713211]
[1754806605321,0.5,809.76,808.24,1.07713211]
[1754806605526,0.5,809.6,808.25,1.07713211]
[1754806605821,0.5,809.59,807.95,2.75971933]
[1754806606318,0.5,809.59,807.76,0.21523998]
[1754806606520,0.21528192,809.19,807.76,0.21523998]
[1754806607419,0.5,809.76,807.76,0.21523998]
[1754806607623,0.21524397,809.46,808.04,3.86360707]
[1754806607823,0.21524397,809.46,808.54,2.75971933]
[1754806608326,0.21524397,809.46,808.47,2.75971933]
[1754806608822,0.21524397,809.46,809.12,1.08494579]
[1754806609026,0.21524397,809.46,809.13,1.08494579]
[1754806609326,0.21524397,809.46,809.12,1.08494579]
[1754806609527,0.21524397,809.46,809.08,1.08494579]
[1754806609724,0.21524397,809.46,809.05,1.08494579]
[1754806610123,0.21524397,809.46,809.0,1.08494579]
[1754806610328,0.21524397,809.46,808.95,1.08494579]
[1754806611125,0.21524397,809.46,808.94,1.08494579]
[1754806611324,0.21524397,809.46,808.91,1.08494579]
[1754806611526,0.21524397,809.46,808.9,1.08494579]
[1754806611724,0.21524397,809.46,808.91,1.08494579]
[1754806612025,0.21524397,809.46,808.87,1.08494579]
[1754806612227,0.21524397,809.46,808.88,1.08494579]
[1754806612428,0.21524397,809.46,808.85,1.08494579]
[1754806613329,0.21524397,809.46,808.83,1.08494579]
[1754806613526,0.21524397,809.46,808.4,1.448]
[1754806613527,0.21524397,809.46,808.88,1.08494579]
[1754806613727,0.21524397,809.46,808.89,1.08494579]
[1754806614027,0.21524397,809.46,808.88,1.08494579]
[1754806614231,0.21524397,809.46,808.89,1.08494579]
[1754806614527,0.21524397,809.46,808.87,1.08494579]
[1754806615027,0.5,809.97,808.99,1.08494579]
[1754806615227,0.5,810.14,809.05,1.08494579]
[1754806615426,0.5,810.14,808.4,1.448]
[1754806615427,0.2151209,809.64,809.07,1.08494579]
[1754806615629,0.5,810.14,809.1,1.08494579]
[1754806615831,0.21509763,809.87,809.11,1.08494579]
[1754806616132,0.21509763,809.87,809.13,1.08494579]
[1754806616329,0.21509763,809.87,809.12,1.08494579]
[1754806616531,0.21509763,809.87,809.0,1.08494579]
[1754806616729,0.21509763,809.87,808.99,1.08494579]
[1754806616929,0.21509763,809.87,808.97,1.08494579]
[1754806617429,0.21509763,809.87,808.95,1.08494579]
[1754806618430,0.21509763,809.87,808.97,1.08494579]
[1754806619031,0.21509763,809.87,808.92,1.08494579]
[1754806619331,0.21509763,809.87,808.91,1.08494579]
[1754806619634,0.21509763,809.87,808.95,1.08494579]
[1754806620836,0.21509763,809.87,808.97,1.08494579]
[1754806621432,0.21509763,809.87,808.96,1.08494579]
[1754806622333,0.21509763,809.87,808.91,1.08494579]
[1754806622736,0.21509763,809.87,808.93,1.08494579]
[1754806623037,0.21509763,809.87,808.99,1.08494579]
[1754806623433,0.21509763,809.87,808.95,1.08494579]
[1754806624437,0.21509763,809.87,808.99,1.08494579]
[1754806625236,0.21509763,809.87,808.94,1.08494579]
[1754806625433,0.21509763,809.87,808.9,1.08494579]
[1754806625634,0.21509763,809.87,808.95,1.08494579]
[1754806625831,0.21509763,809.87,808.96,1.08494579]
[1754806627039,0.21509763,809.87,808.99,1.08494579]
[1754806627342,0.21509763,809.87,809.0,1.08494579]
[1754806628037,0.21509763,809.87,809.06,1.08494579]
[1754806628236,0.21509763,809.87,809.07,1.08494579]
[1754806628436,0.21509763,809.87,809.08,1.08494579]
[1754806628642,0.21509763,809.87,809.07,1.08494579]
[1754806628844,0.21509763,809.87,809.08,1.08494579]
[1754806629335,0.21509763,809.87,809.09,1.08494579]
[1754806629537,0.21509763,809.87,809.08,1.08494579]
[1754806629740,0.21509763,809.87,809.07,1.08494579]
[1754806629937,0.21509763,809.87,809.01,1.08494579]
[1754806630541,0.21509763,809.87,809.02,1.08494579]
[1754806631137,0.21509763,809.87,809.03,1.08494579]
[1754806631441,0.21509763,809.87,809.04,1.08494579]
[1754806631636,0.21509763,809.87,809.1,1.08494579]
[1754806631940,0.21509763,809.87,809.11,1.08494579]
[1754806632736,0.21509763,809.87,809.08,1.08494579]
[1754806632938,0.21509763,809.87,809.09,1.08494579]
[1754806633344,0.21509763,809.87,809.0,1.08494579]
[1754806633641,0.21509763,809.87,809.01,1.08494579]
[1754806634339,0.21509763,809.87,809.02,1.08494579]
[1754806634541,0.21509763,809.87,809.03,1.08494579]
[1754806634738,0.21509763,809.87,809.0,1.08494579]
[1754806635443,0.21509763,809.87,809.03,1.08494579]
[1754806635644,0.21509763,809.87,809.06,1.08494579]
[1754806636441,0.21509763,809.87,809.08,1.08494579]
[1754806637344,0.21509763,809.87,809.09,1.08494579]
[1754806637546,0.21509763,809.87,808.4,1.448]
[1754806637547,0.21509763,809.87,809.1,1.08494579]
[1754806637846,0.21509763,809.87,809.17,1.08494579]
[1754806638047,0.21509763,809.87,809.18,1.08494579]
[1754806638241,0.21509763,809.87,809.2,1.08494579]
[1754806638443,0.21509763,809.87,808.4,1.448]
[1754806638444,0.21509763,809.87,809.33,1.08494579]
[1754806638646,0.21509763,809.87,809.29,1.08494579]
[1754806638943,0.21509763,809.87,809.31,1.08494579]
[1754806639343,0.21509763,809.87,809.32,1.08494579]
[1754806639543,0.21509763,809.87,809.33,1.08494579]
[1754806639741,0.21509763,809.87,809.34,1.08494579]
[1754806640045,0.21509763,809.87,809.38,1.08494579]
[1754806640244,0.21509763,809.87,809.37,1.08494579]
[1754806640444,0.21509763,809.87,809.39,1.08494579]
[1754806640646,0.21509763,809.87,809.4,1.08494579]
[1754806641044,0.21509763,809.87,809.39,1.08494579]
[1754806641447,0.21509763,809.87,809.41,1.08494579]
[1754806641747,0.21509763,809.87,809.4,1.08494579]
[1754806641948,0.21509763,809.87,809.42,1.08494579]
[1754806642149,0.21509763,809.87,809.41,1.08494579]
[1754806642449,0.21509763,809.87,809.45,1.08494579]
[1754806643349,0.21509763,809.87,809.4,1.08494579]
[1754806643545,0.21509763,809.87,809.43,1.08494579]
[1754806644050,0.21509763,809.87,809.39,1.08494579]
[1754806644347,0.21509763,809.87,809.41,1.08494579]
[1754806645452,0.21509763,809.87,809.4,1.08494579]
[1754806646450,0.21509763,809.87,809.3,1.08494579]
[1754806646850,0.21509763,809.87,809.26,1.08494579]
[1754806647150,0.21509763,809.87,809.15,1.08494579]
[1754806647352,0.21509763,809.87,809.14,1.08494579]
[1754806647554,0.21509763,809.87,809.18,1.08494579]
[1754806647852,0.21509763,809.87,809.17,1.08494579]
[1754806648358,0.21509763,809.87,809.2,1.08494579]
[1754806648857,0.21509763,809.87,809.22,1.08494579]
[1754806649055,0.21509763,809.87,809.23,1.08494579]
[1754806649254,0.21509763,809.87,809.31,1.08494579]
[1754806649456,0.21509763,809.87,809.4,1.08494579]
[1754806649957,0.21509763,809.87,809.36,1.08494579]
[1754806650356,0.21509763,809.87,809.41,1.08494579]
[1754806651160,0.21509763,809.87,809.23,1.61541357]
[1754806651161,0.21509763,809.87,809.4,1.08494579]
[1754806651461,0.21509763,809.87,809.46,1.08494579]
[1754806651658,0.21509763,809.87,809.45,1.08494579]